[Event "Titled Tuesday Blitz October 11 Early 2022"]
[White "Sailer, Mike"]
[Black "Namitbir Singh Walia"]
[WhiteFideId "2012901"]
[BlackFideId "35071068"]
[WhiteElo "2109"]
[BlackElo "2239"]
[Result "0-1"]
[Round "02"]
[TimeControl "180+1"]
[Date "2022.10.12"]
[WhiteClock "0:00:05"]
[BlackClock "0:00:10"]

1. d4 {[%clk 0:03:00]}  Nf6 {[%clk 0:02:58]} 2. Nc3 {[%clk 0:03:01]}  d5 {[%clk 0:02:57]} 3. Bf4 {[%clk 0:03:01]}  Bf5 {[%clk 0:02:57]} 4. f3 {[%clk 0:03:02]}  e6 {[%clk 0:02:49]} 5. g4 {[%clk 0:03:02]}  Bg6 {[%clk 0:02:49]} 6. h4 {[%clk 0:03:03]}  h6 {[%clk 0:02:50]} 7. e3 {[%clk 0:03:03]}  c6 {[%clk 0:02:47]} 8. Bd3 {[%clk 0:03:03]}  Bxd3 {[%clk 0:02:46]} 9. Qxd3 {[%clk 0:03:04]}  Bd6 {[%clk 0:02:39]} 10. Nge2 {[%clk 0:03:04]}  Qc7 {[%clk 0:02:38]} 11. O-O-O {[%clk 0:03:04]}  Nbd7 {[%clk 0:02:36]} 12. g5 {[%clk 0:03:04]}  Ng8 {[%clk 0:02:36]} 13. Bxd6 {[%clk 0:02:44]}  Qxd6 {[%clk 0:02:35]} 14. g6 {[%clk 0:02:32]}  f6 {[%clk 0:02:25]} 15. Nf4 {[%clk 0:02:29]}  Ne7 {[%clk 0:02:15]} 16. Nh5 {[%clk 0:02:27]}  Rg8 {[%clk 0:02:10]} 17. e4 {[%clk 0:02:13]}  O-O-O {[%clk 0:02:09]} 18. Kb1 {[%clk 0:02:09]}  Qc7 {[%clk 0:00:44]} 19. f4 {[%clk 0:01:53]}  f5 {[%clk 0:00:32]} 20. e5 {[%clk 0:01:45]}  Nxg6 {[%clk 0:00:26]} 21. Rdg1 {[%clk 0:01:45]}  Ndf8 {[%clk 0:00:26]} 22. Rg3 {[%clk 0:01:30]}  Qf7 {[%clk 0:00:26]} 23. Rhg1 {[%clk 0:01:29]}  Nxh4 {[%clk 0:00:22]} 24. Nxg7 {[%clk 0:01:13]}  Rd7 {[%clk 0:00:11]} 25. Nxf5 {[%clk 0:00:59]}  Rxg3 {[%clk 0:00:04]} 26. Nxg3 {[%clk 0:00:59]}  Qxf4 {[%clk 0:00:04]} 27. Nge2 {[%clk 0:00:51]}  Qf3 {[%clk 0:00:02]} 28. Qd2 {[%clk 0:00:43]}  Rf7 {[%clk 0:00:02]} 29. Qxh6 {[%clk 0:00:39]}  Nf5 {[%clk 0:00:03]} 30. Qh8 {[%clk 0:00:36]}  Ne3 {[%clk 0:00:03]} 31. a3 {[%clk 0:00:29]}  Qf5 {[%clk 0:00:04]} 32. Rc1 {[%clk 0:00:26]}  Rh7 {[%clk 0:00:04]} 33. Qg8 {[%clk 0:00:26]}  Qf7 {[%clk 0:00:04]} 34. Qg5 {[%clk 0:00:18]}  Nf5 {[%clk 0:00:04]} 35. Nf4 {[%clk 0:00:16]}  Rg7 {[%clk 0:00:04]} 36. Qf6 {[%clk 0:00:12]}  Nxd4 {[%clk 0:00:03]} 37. Qxf7 {[%clk 0:00:07]}  Rxf7 {[%clk 0:00:04]} 38. Nh5 {[%clk 0:00:06]}  Nf5 {[%clk 0:00:04]} 39. Nf6 {[%clk 0:00:06]}  Nd7 {[%clk 0:00:05]} 40. Nxd7 {[%clk 0:00:05]}  Kxd7 {[%clk 0:00:06]} 41. Rg1 {[%clk 0:00:05]}  Rg7 {[%clk 0:00:07]} 42. Rh1 {[%clk 0:00:05]}  c5 {[%clk 0:00:06]} 43. Nb5 {[%clk 0:00:05]}  a6 {[%clk 0:00:07]} 44. Nc3 {[%clk 0:00:05]}  b5 {[%clk 0:00:07]} 45. Ne2 {[%clk 0:00:06]}  Ne3 {[%clk 0:00:07]} 46. Nf4 {[%clk 0:00:07]}  Ng4 {[%clk 0:00:07]} 47. Nh5 {[%clk 0:00:07]}  Rf7 {[%clk 0:00:06]} 48. Rg1 {[%clk 0:00:07]}  Nxe5 {[%clk 0:00:06]} 49. Rg8 {[%clk 0:00:06]}  Nc6 {[%clk 0:00:07]} 50. Ra8 {[%clk 0:00:06]}  b4 {[%clk 0:00:06]} 51. Rxa6 {[%clk 0:00:05]}  bxa3 {[%clk 0:00:06]} 52. bxa3 {[%clk 0:00:06]}  e5 {[%clk 0:00:06]} 53. Ng3 {[%clk 0:00:05]}  e4 {[%clk 0:00:07]} 54. Ne2 {[%clk 0:00:05]}  d4 {[%clk 0:00:06]} 55. Kb2 {[%clk 0:00:05]}  Kd6 {[%clk 0:00:07]} 56. Kb3 {[%clk 0:00:05]}  Kd5 {[%clk 0:00:08]} 57. a4 {[%clk 0:00:05]}  Rb7+ {[%clk 0:00:08]} 58. Ka3 {[%clk 0:00:05]}  Nb4 {[%clk 0:00:08]} 59. Ra8 {[%clk 0:00:05]}  Nxc2+ {[%clk 0:00:09]} 60. Ka2 {[%clk 0:00:05]}  Nb4+ {[%clk 0:00:09]} 61. Ka3 {[%clk 0:00:06]}  Kc4 {[%clk 0:00:10]} 62. Nc1 {[%clk 0:00:05]}  Nc2+ {[%clk 0:00:10]} 63. Ka2 {[%clk 0:00:06]}  d3 {[%clk 0:00:10]} 64. Nb3 {[%clk 0:00:06]}  Rxb3 {[%clk 0:00:10]} 65. a5 {[%clk 0:00:05]}  Kc3 {[%clk 0:00:10]} 0-1


[Site "https://www.chess.com"]

[Event "Titled Tuesday Blitz October 11 Early 2022"]
[White "Salman, Pavel"]
[Black "Jean Louis, Marckens"]
[WhiteFideId "24153753"]
[BlackFideId "11900270"]
[WhiteElo "2187"]
[BlackElo "2030"]
[Result "0-1"]
[Round "02"]
[TimeControl "180+1"]
[Date "2022.10.12"]
[WhiteClock "0:00:09"]
[BlackClock "0:00:06"]

1. Nf3 {[%clk 0:03:00]}  d5 {[%clk 0:00:43]} 2. g3 {[%clk 0:02:59]}  Nf6 {[%clk 0:00:44]} 3. Bg2 {[%clk 0:02:59]}  e6 {[%clk 0:00:45]} 4. O-O {[%clk 0:03:00]}  Be7 {[%clk 0:00:46]} 5. d3 {[%clk 0:03:00]}  c5 {[%clk 0:00:46]} 6. Nbd2 {[%clk 0:03:01]}  O-O {[%clk 0:00:47]} 7. Re1 {[%clk 0:03:02]}  Nc6 {[%clk 0:00:48]} 8. e4 {[%clk 0:03:03]}  b6 {[%clk 0:00:47]} 9. e5 {[%clk 0:03:03]}  Nd7 {[%clk 0:00:47]} 10. Nf1 {[%clk 0:03:03]}  Bb7 {[%clk 0:00:47]} 11. Bf4 {[%clk 0:03:04]}  Rc8 {[%clk 0:00:46]} 12. h4 {[%clk 0:03:04]}  b5 {[%clk 0:00:44]} 13. h5 {[%clk 0:03:05]}  c4 {[%clk 0:00:39]} 14. h6 {[%clk 0:03:04]}  g6 {[%clk 0:00:38]} 15. d4 {[%clk 0:02:59]}  c3 {[%clk 0:00:37]} 16. b3 {[%clk 0:02:55]}  a5 {[%clk 0:00:37]} 17. Ne3 {[%clk 0:02:55]}  a4 {[%clk 0:00:36]} 18. Ng4 {[%clk 0:02:54]}  Re8 {[%clk 0:00:32]} 19. Qc1 {[%clk 0:02:51]}  Qa5 {[%clk 0:00:29]} 20. Bg5 {[%clk 0:02:51]}  Bf8 {[%clk 0:00:28]} 21. Qf4 {[%clk 0:02:48]}  Ne7 {[%clk 0:00:21]} 22. Bxe7 {[%clk 0:02:20]}  Bxe7 {[%clk 0:00:19]} 23. Ng5 {[%clk 0:02:18]}  Rf8 {[%clk 0:00:18]} 24. Rad1 {[%clk 0:02:05]}  Qd8 {[%clk 0:00:17]} 25. Nh3 {[%clk 0:01:59]}  axb3 {[%clk 0:00:17]} 26. axb3 {[%clk 0:01:59]}  Ra8 {[%clk 0:00:16]} 27. Rd3 {[%clk 0:01:57]}  b4 {[%clk 0:00:14]} 28. Rf3 {[%clk 0:01:55]}  Ra2 {[%clk 0:00:14]} 29. Re2 {[%clk 0:01:50]}  Ba6 {[%clk 0:00:11]} 30. Qe3 {[%clk 0:01:36]}  Bxe2 {[%clk 0:00:10]} 31. Qxe2 {[%clk 0:01:37]}  Qc8 {[%clk 0:00:09]} 32. Bf1 {[%clk 0:01:36]}  Qc6 {[%clk 0:00:09]} 33. Nf4 {[%clk 0:01:31]}  Qb6 {[%clk 0:00:07]} 34. Qd3 {[%clk 0:01:03]}  Rfa8 {[%clk 0:00:07]} 35. Kg2 {[%clk 0:01:01]}  Ra1 {[%clk 0:00:07]} 36. Qe3 {[%clk 0:00:47]}  Rxf1 {[%clk 0:00:06]} 37. Kxf1 {[%clk 0:00:45]}  Ra1+ {[%clk 0:00:07]} 38. Kg2 {[%clk 0:00:46]}  Qa6 {[%clk 0:00:08]} 39. Nd3 {[%clk 0:00:45]}  Qa2 {[%clk 0:00:07]} 40. Ne1 {[%clk 0:00:27]}  Qb1 {[%clk 0:00:06]} 41. Kf1 {[%clk 0:00:28]}  Qd1 {[%clk 0:00:06]} 42. Qe2 {[%clk 0:00:26]}  Qxe2+ {[%clk 0:00:05]} 43. Kxe2 {[%clk 0:00:27]}  Bg5 {[%clk 0:00:06]} 44. Nd3 {[%clk 0:00:26]}  Bd2 {[%clk 0:00:06]} 45. Nxb4 {[%clk 0:00:25]}  Re1+ {[%clk 0:00:05]} 46. Kd3 {[%clk 0:00:26]}  Nb8 {[%clk 0:00:05]} 47. Nf6+ {[%clk 0:00:23]}  Kf8 {[%clk 0:00:05]} 48. Nxh7+ {[%clk 0:00:23]}  Ke7 {[%clk 0:00:06]} 49. Ng5 {[%clk 0:00:22]}  Bxg5 {[%clk 0:00:06]} 50. h7 {[%clk 0:00:20]}  Rh1 {[%clk 0:00:06]} 51. Kxc3 {[%clk 0:00:19]}  Rxh7 {[%clk 0:00:06]} 52. Kb2 {[%clk 0:00:19]}  Rh2 {[%clk 0:00:06]} 53. c4 {[%clk 0:00:17]}  dxc4 {[%clk 0:00:07]} 54. bxc4 {[%clk 0:00:17]}  Bd2 {[%clk 0:00:07]} 55. Nd3 {[%clk 0:00:17]}  Nc6 {[%clk 0:00:06]} 56. Kc2 {[%clk 0:00:17]}  Nxd4+ {[%clk 0:00:06]} 57. Kxd2 {[%clk 0:00:17]}  Nxf3+ {[%clk 0:00:06]} 58. Ke3 {[%clk 0:00:18]}  Ng5 {[%clk 0:00:06]} 59. f4 {[%clk 0:00:18]}  Rh1 {[%clk 0:00:07]} 60. fxg5 {[%clk 0:00:18]}  Ra1 {[%clk 0:00:06]} 61. c5 {[%clk 0:00:18]}  Kd7 {[%clk 0:00:07]} 62. Kd4 {[%clk 0:00:18]}  Kc6 {[%clk 0:00:06]} 63. Kc4 {[%clk 0:00:18]}  Rg1 {[%clk 0:00:04]} 64. Nb4+ {[%clk 0:00:18]}  Kc7 {[%clk 0:00:05]} 65. Kb5 {[%clk 0:00:18]}  Rxg3 {[%clk 0:00:05]} 66. Na6+ {[%clk 0:00:19]}  Kc8 {[%clk 0:00:04]} 67. Kc6 {[%clk 0:00:18]}  Rxg5 {[%clk 0:00:05]} 68. Kd6 {[%clk 0:00:17]}  Rg1 {[%clk 0:00:05]} 69. c6 {[%clk 0:00:17]}  Rd1+ {[%clk 0:00:05]} 70. Ke7 {[%clk 0:00:17]}  g5 {[%clk 0:00:05]} 71. Nc5 {[%clk 0:00:16]}  g4 {[%clk 0:00:06]} 72. Ne4 {[%clk 0:00:17]}  Re1 {[%clk 0:00:06]} 73. Ng3 {[%clk 0:00:15]}  Re3 {[%clk 0:00:05]} 74. Nh5 {[%clk 0:00:14]}  g3 {[%clk 0:00:05]} 75. Nf4 {[%clk 0:00:13]}  Rf3 {[%clk 0:00:04]} 76. Ng2 {[%clk 0:00:10]}  Kc7 {[%clk 0:00:04]} 77. Nh4 {[%clk 0:00:08]}  Rf1 {[%clk 0:00:04]} 78. Kf8 {[%clk 0:00:06]}  Kxc6 {[%clk 0:00:05]} 79. Kg7 {[%clk 0:00:07]}  Kd5 {[%clk 0:00:05]} 80. Kh6 {[%clk 0:00:07]}  Rh1 {[%clk 0:00:05]} 81. Kg5 {[%clk 0:00:08]}  Rxh4 {[%clk 0:00:05]} 82. Kxh4 {[%clk 0:00:09]}  g2 {[%clk 0:00:06]} 83. Kh3 {[%clk 0:00:09]}  g1=Q {[%clk 0:00:06]} 0-1


[Site "https://www.chess.com"]

[Event "Titled Tuesday Blitz October 11 Early 2022"]
[White "Samant Aditya S"]
[Black "Sowul, Bartosz"]
[WhiteFideId "35080580"]
[BlackFideId "1137590"]
[WhiteElo "2367"]
[BlackElo "2188"]
[Result "1-0"]
[Round "02"]
[TimeControl "180+1"]
[Date "2022.10.12"]
[WhiteClock "0:00:13"]
[BlackClock "0:00:22"]

1. b3 {[%clk 0:03:00]}  e5 {[%clk 0:02:59]} 2. Bb2 {[%clk 0:03:01]}  Nc6 {[%clk 0:03:00]} 3. e3 {[%clk 0:03:01]}  Nf6 {[%clk 0:03:00]} 4. c4 {[%clk 0:03:02]}  Bd6 {[%clk 0:02:58]} 5. Nc3 {[%clk 0:02:58]}  O-O {[%clk 0:02:56]} 6. g3 {[%clk 0:02:58]}  Re8 {[%clk 0:02:55]} 7. Bg2 {[%clk 0:02:59]}  e4 {[%clk 0:02:54]} 8. Nge2 {[%clk 0:02:56]}  Nb4 {[%clk 0:02:50]} 9. Nc1 {[%clk 0:02:50]}  Be5 {[%clk 0:02:44]} 10. a3 {[%clk 0:02:39]}  Na6 {[%clk 0:02:40]} 11. d4 {[%clk 0:02:30]}  exd3 {[%clk 0:02:36]} 12. Nxd3 {[%clk 0:02:30]}  d6 {[%clk 0:02:26]} 13. O-O {[%clk 0:02:23]}  c6 {[%clk 0:02:21]} 14. Re1 {[%clk 0:02:13]}  Nc5 {[%clk 0:02:07]} 15. b4 {[%clk 0:01:29]}  Bg4 {[%clk 0:01:57]} 16. f3 {[%clk 0:01:17]}  Nxd3 {[%clk 0:01:47]} 17. Qxd3 {[%clk 0:01:18]}  Be6 {[%clk 0:01:46]} 18. f4 {[%clk 0:01:17]}  Bxc3 {[%clk 0:01:44]} 19. Qxc3 {[%clk 0:01:18]}  d5 {[%clk 0:01:35]} 20. Rad1 {[%clk 0:01:18]}  Qe7 {[%clk 0:01:34]} 21. e4 {[%clk 0:00:54]}  dxc4 {[%clk 0:01:18]} 22. f5 {[%clk 0:00:51]}  Bc8 {[%clk 0:01:16]} 23. e5 {[%clk 0:00:26]}  Nd5 {[%clk 0:01:15]} 24. Bxd5 {[%clk 0:00:27]}  cxd5 {[%clk 0:01:15]} 25. e6 {[%clk 0:00:28]}  fxe6 {[%clk 0:01:10]} 26. fxe6 {[%clk 0:00:29]}  Rd8 {[%clk 0:01:02]} 27. Re5 {[%clk 0:00:16]}  a5 {[%clk 0:00:51]} 28. b5 {[%clk 0:00:14]}  b6 {[%clk 0:00:46]} 29. h4 {[%clk 0:00:09]}  Ra7 {[%clk 0:00:44]} 30. Rg5 {[%clk 0:00:08]}  Bxe6 {[%clk 0:00:41]} 31. Re1 {[%clk 0:00:07]}  d4 {[%clk 0:00:31]} 32. Qf3 {[%clk 0:00:06]}  Qf7 {[%clk 0:00:29]} 33. Qe4 {[%clk 0:00:05]}  Rf8 {[%clk 0:00:26]} 34. Qxd4 {[%clk 0:00:04]}  Qf2+ {[%clk 0:00:25]} 35. Qxf2 {[%clk 0:00:04]}  Rxf2 {[%clk 0:00:25]} 36. Kxf2 {[%clk 0:00:05]}  Rf7+ {[%clk 0:00:24]} 37. Kg1 {[%clk 0:00:05]}  Bd7 {[%clk 0:00:23]} 38. Rge5 {[%clk 0:00:05]}  h6 {[%clk 0:00:22]} 39. Re7 {[%clk 0:00:05]}  Bxb5 {[%clk 0:00:20]} 40. Rxf7 {[%clk 0:00:05]}  Kxf7 {[%clk 0:00:21]} 41. Bd4 {[%clk 0:00:06]}  Ba4 {[%clk 0:00:19]} 42. Bxb6 {[%clk 0:00:06]}  c3 {[%clk 0:00:20]} 43. Bxa5 {[%clk 0:00:07]}  c2 {[%clk 0:00:21]} 44. Bd2 {[%clk 0:00:08]}  Bb3 {[%clk 0:00:21]} 45. Bc1 {[%clk 0:00:09]}  Bc4 {[%clk 0:00:21]} 46. Kf2 {[%clk 0:00:10]}  Bd3 {[%clk 0:00:20]} 47. Ke3 {[%clk 0:00:10]}  Bf5 {[%clk 0:00:20]} 48. Kd4 {[%clk 0:00:11]}  h5 {[%clk 0:00:20]} 49. Kc5 {[%clk 0:00:12]}  g6 {[%clk 0:00:21]} 50. a4 {[%clk 0:00:12]}  Kf6 {[%clk 0:00:22]} 51. a5 {[%clk 0:00:13]} 1-0


[Site "https://www.chess.com"]

[Event "Titled Tuesday Blitz October 11 Early 2022"]
[White "Sanchez, Robert"]
[Black "Mindlin, Alon"]
[WhiteFideId "2034360"]
[BlackFideId "2800071"]
[WhiteElo "2388"]
[BlackElo "2417"]
[Result "1-0"]
[Round "02"]
[TimeControl "180+1"]
[Date "2022.10.12"]
[WhiteClock "0:00:11"]
[BlackClock "0:00:29"]

1. e4 {[%clk 0:03:00]}  e5 {[%clk 0:02:57]} 2. Nf3 {[%clk 0:02:59]}  Nc6 {[%clk 0:02:58]} 3. Bb5 {[%clk 0:02:59]}  a6 {[%clk 0:02:58]} 4. Ba4 {[%clk 0:02:59]}  Nf6 {[%clk 0:02:58]} 5. d3 {[%clk 0:02:59]}  b5 {[%clk 0:02:58]} 6. Bb3 {[%clk 0:02:59]}  Be7 {[%clk 0:02:58]} 7. c3 {[%clk 0:02:59]}  d6 {[%clk 0:02:58]} 8. O-O {[%clk 0:02:58]}  O-O {[%clk 0:02:59]} 9. Re1 {[%clk 0:02:59]}  Na5 {[%clk 0:02:56]} 10. Bc2 {[%clk 0:02:59]}  c5 {[%clk 0:02:57]} 11. h3 {[%clk 0:02:57]}  Nc6 {[%clk 0:02:57]} 12. Nbd2 {[%clk 0:02:56]}  Re8 {[%clk 0:02:57]} 13. Nf1 {[%clk 0:02:56]}  Bf8 {[%clk 0:02:58]} 14. Ng3 {[%clk 0:02:52]}  g6 {[%clk 0:02:57]} 15. Bg5 {[%clk 0:02:52]}  h6 {[%clk 0:02:55]} 16. Be3 {[%clk 0:02:50]}  Bg7 {[%clk 0:02:55]} 17. Qd2 {[%clk 0:02:40]}  Kh7 {[%clk 0:02:55]} 18. d4 {[%clk 0:02:38]}  cxd4 {[%clk 0:02:56]} 19. cxd4 {[%clk 0:02:38]}  Bb7 {[%clk 0:02:42]} 20. d5 {[%clk 0:02:34]}  Ne7 {[%clk 0:02:42]} 21. a4 {[%clk 0:02:28]}  Qd7 {[%clk 0:02:27]} 22. Qb4 {[%clk 0:02:21]}  Nexd5 {[%clk 0:02:14]} 23. exd5 {[%clk 0:02:19]}  Nxd5 {[%clk 0:02:15]} 24. Qb3 {[%clk 0:02:13]}  f5 {[%clk 0:02:13]} 25. Bd2 {[%clk 0:02:02]}  e4 {[%clk 0:02:10]} 26. Nh4 {[%clk 0:01:44]}  Bf6 {[%clk 0:02:04]} 27. Nxg6 {[%clk 0:01:38]}  Kxg6 {[%clk 0:02:03]} 28. Nxe4 {[%clk 0:01:30]}  fxe4 {[%clk 0:02:02]} 29. Bxe4+ {[%clk 0:01:30]}  Rxe4 {[%clk 0:02:02]} 30. Rxe4 {[%clk 0:01:30]}  Qf5 {[%clk 0:02:01]} 31. Rg4+ {[%clk 0:01:21]}  Kh7 {[%clk 0:02:00]} 32. axb5 {[%clk 0:01:19]}  a5 {[%clk 0:01:28]} 33. Rc1 {[%clk 0:00:50]}  Bg7 {[%clk 0:01:10]} 34. Qg3 {[%clk 0:00:32]}  Qf6 {[%clk 0:00:58]} 35. Rc7 {[%clk 0:00:22]}  Nxc7 {[%clk 0:00:50]} 36. Bc3 {[%clk 0:00:22]}  Qxc3 {[%clk 0:00:41]} 37. bxc3 {[%clk 0:00:23]}  Ne6 {[%clk 0:00:42]} 38. Qd3+ {[%clk 0:00:22]}  Kh8 {[%clk 0:00:41]} 39. Qxd6 {[%clk 0:00:22]}  Ng5 {[%clk 0:00:38]} 40. h4 {[%clk 0:00:17]}  Nf7 {[%clk 0:00:38]} 41. Qg6 {[%clk 0:00:15]}  Rg8 {[%clk 0:00:32]} 42. Qxf7 {[%clk 0:00:15]}  Bc8 {[%clk 0:00:32]} 43. Re4 {[%clk 0:00:12]}  Rf8 {[%clk 0:00:29]} 44. Re8 {[%clk 0:00:11]} 1-0


[Site "https://www.chess.com"]

[Event "Titled Tuesday Blitz October 11 Early 2022"]
[White "Seletsky, Grigory"]
[Black "Krishnan, Varun"]
[WhiteFideId "14112191"]
[BlackFideId "5054508"]
[WhiteElo "2492"]
[BlackElo "2628"]
[Result "1/2-1/2"]
[Round "02"]
[TimeControl "180+1"]
[Date "2022.10.12"]
[WhiteClock "0:00:27"]
[BlackClock "0:00:20"]

1. e4 {[%clk 0:02:58]}  c5 {[%clk 0:02:54]} 2. Nf3 {[%clk 0:02:55]}  d6 {[%clk 0:02:51]} 3. c4 {[%clk 0:02:54]}  Nf6 {[%clk 0:02:47]} 4. Nc3 {[%clk 0:02:54]}  g6 {[%clk 0:02:47]} 5. d3 {[%clk 0:02:47]}  Bg7 {[%clk 0:02:47]} 6. g3 {[%clk 0:02:45]}  O-O {[%clk 0:02:48]} 7. Bg2 {[%clk 0:02:45]}  e5 {[%clk 0:02:47]} 8. O-O {[%clk 0:02:45]}  Nc6 {[%clk 0:02:47]} 9. Nd5 {[%clk 0:02:41]}  Nxd5 {[%clk 0:02:47]} 10. cxd5 {[%clk 0:02:40]}  Nd4 {[%clk 0:02:47]} 11. Nxd4 {[%clk 0:02:40]}  cxd4 {[%clk 0:02:48]} 12. f4 {[%clk 0:02:32]}  a5 {[%clk 0:02:46]} 13. f5 {[%clk 0:02:28]}  Bd7 {[%clk 0:02:46]} 14. g4 {[%clk 0:02:26]}  f6 {[%clk 0:02:46]} 15. h4 {[%clk 0:02:24]}  Rc8 {[%clk 0:02:45]} 16. h5 {[%clk 0:02:21]}  Qe8 {[%clk 0:02:39]} 17. hxg6 {[%clk 0:02:11]}  hxg6 {[%clk 0:02:38]} 18. Bd2 {[%clk 0:01:54]}  b6 {[%clk 0:02:32]} 19. Rc1 {[%clk 0:01:49]}  g5 {[%clk 0:02:31]} 20. Rxc8 {[%clk 0:01:43]}  Qxc8 {[%clk 0:02:30]} 21. Qb1 {[%clk 0:01:41]}  Qa6 {[%clk 0:02:21]} 22. Rc1 {[%clk 0:01:39]}  Bb5 {[%clk 0:02:20]} 23. Bf1 {[%clk 0:01:39]}  Rc8 {[%clk 0:02:19]} 24. Rxc8+ {[%clk 0:01:34]}  Qxc8 {[%clk 0:02:20]} 25. Qc1 {[%clk 0:01:34]}  Qxc1 {[%clk 0:02:16]} 26. Bxc1 {[%clk 0:01:32]}  Kf7 {[%clk 0:02:15]} 27. b3 {[%clk 0:01:31]}  Bf8 {[%clk 0:02:12]} 28. a4 {[%clk 0:01:27]}  Bd7 {[%clk 0:02:07]} 29. Be2 {[%clk 0:01:26]}  Be7 {[%clk 0:02:00]} 30. Bd1 {[%clk 0:01:25]}  Bd8 {[%clk 0:01:59]} 31. Kf2 {[%clk 0:01:24]}  b5 {[%clk 0:01:58]} 32. Ba3 {[%clk 0:01:23]}  Bc7 {[%clk 0:01:57]} 33. Ke2 {[%clk 0:01:22]}  Ke7 {[%clk 0:01:57]} 34. Bc2 {[%clk 0:01:21]}  Kd8 {[%clk 0:01:57]} 35. Kd2 {[%clk 0:01:21]}  Kc8 {[%clk 0:01:57]} 36. Kc1 {[%clk 0:01:20]}  Kb7 {[%clk 0:01:57]} 37. Kb1 {[%clk 0:01:20]}  Kb6 {[%clk 0:01:55]} 38. Ka2 {[%clk 0:01:19]}  Bb8 {[%clk 0:01:50]} 39. Kb1 {[%clk 0:01:19]}  Ba7 {[%clk 0:01:48]} 40. Ka2 {[%clk 0:01:18]}  Kc7 {[%clk 0:01:45]} 41. Kb1 {[%clk 0:01:16]}  Bc5 {[%clk 0:01:45]} 42. Ka2 {[%clk 0:01:07]}  Kb6 {[%clk 0:01:43]} 43. Bd1 {[%clk 0:01:03]}  Bc8 {[%clk 0:01:40]} 44. Bc2 {[%clk 0:01:03]}  Ba6 {[%clk 0:01:40]} 45. Bb1 {[%clk 0:01:01]}  Bxa3 {[%clk 0:01:21]} 46. Kxa3 {[%clk 0:01:00]}  Kc5 {[%clk 0:01:21]} 47. Bc2 {[%clk 0:00:58]}  Bb7 {[%clk 0:01:10]} 48. Bb1 {[%clk 0:00:57]}  Bc8 {[%clk 0:01:07]} 49. Bc2 {[%clk 0:00:57]}  Kb6 {[%clk 0:01:06]} 50. Bd1 {[%clk 0:00:55]}  Kc5 {[%clk 0:01:06]} 51. Bc2 {[%clk 0:00:55]}  Ba6 {[%clk 0:00:55]} 52. Bb1 {[%clk 0:00:55]}  bxa4 {[%clk 0:00:46]} 53. bxa4 {[%clk 0:00:52]}  Bc4 {[%clk 0:00:37]} 54. Bc2 {[%clk 0:00:50]}  Ba6 {[%clk 0:00:35]} 55. Bb1 {[%clk 0:00:49]}  Bc8 {[%clk 0:00:28]} 56. Bc2 {[%clk 0:00:49]}  Bd7 {[%clk 0:00:28]} 57. Bb1 {[%clk 0:00:48]}  Bc8 {[%clk 0:00:06]} 58. Bc2 {[%clk 0:00:48]}  Bb7 {[%clk 0:00:06]} 59. Kb3 {[%clk 0:00:47]}  Ba6 {[%clk 0:00:07]} 60. Bb1 {[%clk 0:00:46]}  Bb7 {[%clk 0:00:07]} 61. Bc2 {[%clk 0:00:46]}  Bc8 {[%clk 0:00:08]} 62. Bd1 {[%clk 0:00:42]}  Ba6 {[%clk 0:00:08]} 63. Be2 {[%clk 0:00:38]}  Bb7 {[%clk 0:00:08]} 64. Bf3 {[%clk 0:00:37]}  Ba6 {[%clk 0:00:09]} 65. Be2 {[%clk 0:00:36]}  Bb7 {[%clk 0:00:09]} 66. Bf3 {[%clk 0:00:36]}  Bc8 {[%clk 0:00:09]} 67. Be2 {[%clk 0:00:36]}  Bd7 {[%clk 0:00:09]} 68. Bf1 {[%clk 0:00:36]}  Be8 {[%clk 0:00:09]} 69. Be2 {[%clk 0:00:36]}  Bd7 {[%clk 0:00:09]} 70. Bf1 {[%clk 0:00:36]}  Kb6 {[%clk 0:00:09]} 71. Be2 {[%clk 0:00:35]}  Bc8 {[%clk 0:00:10]} 72. Bf1 {[%clk 0:00:35]}  Bb7 {[%clk 0:00:10]} 73. Be2 {[%clk 0:00:34]}  Ba6 {[%clk 0:00:10]} 74. Bf1 {[%clk 0:00:33]}  Kc7 {[%clk 0:00:10]} 75. Be2 {[%clk 0:00:33]}  Kd8 {[%clk 0:00:10]} 76. Bf1 {[%clk 0:00:32]}  Ke7 {[%clk 0:00:11]} 77. Be2 {[%clk 0:00:32]}  Kf7 {[%clk 0:00:11]} 78. Bf1 {[%clk 0:00:32]}  Kg7 {[%clk 0:00:11]} 79. Be2 {[%clk 0:00:32]}  Kh6 {[%clk 0:00:11]} 80. Kc2 {[%clk 0:00:30]}  Kh7 {[%clk 0:00:11]} 81. Kb3 {[%clk 0:00:30]}  Kh8 {[%clk 0:00:11]} 82. Kb2 {[%clk 0:00:30]}  Kg8 {[%clk 0:00:11]} 83. Kb3 {[%clk 0:00:30]}  Kg7 {[%clk 0:00:12]} 84. Ka3 {[%clk 0:00:28]}  Kf7 {[%clk 0:00:12]} 85. Kb3 {[%clk 0:00:28]}  Kf8 {[%clk 0:00:13]} 86. Ka3 {[%clk 0:00:27]}  Ke8 {[%clk 0:00:13]} 87. Kb3 {[%clk 0:00:27]}  Ke7 {[%clk 0:00:14]} 88. Ka3 {[%clk 0:00:28]}  Kd7 {[%clk 0:00:15]} 89. Kb3 {[%clk 0:00:28]}  Kd8 {[%clk 0:00:15]} 90. Ka3 {[%clk 0:00:28]}  Kc7 {[%clk 0:00:16]} 91. Kb3 {[%clk 0:00:27]}  Kc8 {[%clk 0:00:16]} 92. Ka3 {[%clk 0:00:27]}  Kb8 {[%clk 0:00:17]} 93. Kb3 {[%clk 0:00:27]}  Ka8 {[%clk 0:00:18]} 94. Ka3 {[%clk 0:00:27]}  Ka7 {[%clk 0:00:18]} 95. Kb3 {[%clk 0:00:28]}  Kb7 {[%clk 0:00:19]} 96. Ka3 {[%clk 0:00:28]}  Kb6 {[%clk 0:00:20]} 97. Kb3 {[%clk 0:00:28]}  Kc5 {[%clk 0:00:20]} 98. Ka3 {[%clk 0:00:28]}  Bc8 {[%clk 0:00:20]} 99. Kb3 {[%clk 0:00:27]}  Bd7 {[%clk 0:00:20]} 1/2-1/2


[Site "https://www.chess.com"]

[Event "Titled Tuesday Blitz October 11 Early 2022"]
[White "Shohat, Yotam"]
[Black "Erenberg, Ariel"]
[WhiteFideId "2813955"]
[BlackFideId "2811634"]
[WhiteElo "2199"]
[BlackElo "2416"]
[Result "1-0"]
[Round "02"]
[TimeControl "180+1"]
[Date "2022.10.12"]
[WhiteClock "0:01:38"]
[BlackClock "0:01:38"]

1. e4 {[%clk 0:03:00]}  c5 {[%clk 0:02:54]} 2. Nf3 {[%clk 0:03:00]}  Nc6 {[%clk 0:02:54]} 3. Bb5 {[%clk 0:02:59]}  g6 {[%clk 0:02:52]} 4. O-O {[%clk 0:02:58]}  Bg7 {[%clk 0:02:53]} 5. Re1 {[%clk 0:02:55]}  Nf6 {[%clk 0:02:53]} 6. e5 {[%clk 0:02:52]}  Ng4 {[%clk 0:02:44]} 7. Bxc6 {[%clk 0:02:51]}  dxc6 {[%clk 0:02:45]} 8. h3 {[%clk 0:02:49]}  Nh6 {[%clk 0:02:45]} 9. d3 {[%clk 0:02:47]}  Nf5 {[%clk 0:02:45]} 10. c3 {[%clk 0:02:37]}  O-O {[%clk 0:02:44]} 11. Bf4 {[%clk 0:02:31]}  e6 {[%clk 0:02:38]} 12. Qe2 {[%clk 0:02:19]}  b6 {[%clk 0:02:39]} 13. Nbd2 {[%clk 0:02:10]}  Ba6 {[%clk 0:02:39]} 14. Nc4 {[%clk 0:02:10]}  Qd5 {[%clk 0:02:32]} 15. Rad1 {[%clk 0:02:00]}  b5 {[%clk 0:02:27]} 16. b3 {[%clk 0:01:46]}  Rad8 {[%clk 0:02:04]} 17. g4 {[%clk 0:01:42]}  Ne7 {[%clk 0:01:55]} 18. Bg5 {[%clk 0:01:41]}  Rd7 {[%clk 0:01:52]} 19. Ne3 {[%clk 0:01:39]}  Qxf3 {[%clk 0:01:37]} 20. Qxf3 {[%clk 0:01:38]}  Bxe5 {[%clk 0:01:38]} 1-0


[Site "https://www.chess.com"]